[Event "Titled Tuesday Blitz April 4 Late 2023"]
[White "Leschinsky, Gary"]
[Black "Martins, Bruno Andre Leite"]
[WhiteFideId "30951321"]
[BlackFideId "1942255"]
[WhiteElo "1855"]
[BlackElo "2240"]
[Result "0-1"]
[Round "05"]
[TimeControl "180+2"]
[Date "2023.04.04"]
[WhiteClock "0:00:10"]
[BlackClock "0:01:14"]

1. d4 {[%clk 0:03:00]}  Nf6 {[%clk 0:02:59]} 2. c4 {[%clk 0:02:55]}  g6 {[%clk 0:02:59]} 3. Nc3 {[%clk 0:02:39]}  Bg7 {[%clk 0:02:58]} 4. e4 {[%clk 0:02:39]}  O-O {[%clk 0:02:59]} 5. f3 {[%clk 0:02:40]}  d6 {[%clk 0:02:59]} 6. Nge2 {[%clk 0:02:40]}  c5 {[%clk 0:02:59]} 7. d5 {[%clk 0:02:38]}  e6 {[%clk 0:02:58]} 8. Ng3 {[%clk 0:02:39]}  exd5 {[%clk 0:02:57]} 9. cxd5 {[%clk 0:02:39]}  h5 {[%clk 0:02:55]} 10. Be2 {[%clk 0:02:23]}  h4 {[%clk 0:02:53]} 11. Nf1 {[%clk 0:02:07]}  Re8 {[%clk 0:02:52]} 12. Bg5 {[%clk 0:01:45]}  h3 {[%clk 0:02:51]} 13. g4 {[%clk 0:01:44]}  Qa5 {[%clk 0:02:39]} 14. Qd2 {[%clk 0:01:27]}  a6 {[%clk 0:02:35]} 15. Ng3 {[%clk 0:00:53]}  b5 {[%clk 0:02:32]} 16. O-O {[%clk 0:00:54]}  Nbd7 {[%clk 0:02:30]} 17. a4 {[%clk 0:00:53]}  b4 {[%clk 0:02:28]} 18. Nd1 {[%clk 0:00:54]}  Ne5 {[%clk 0:02:25]} 19. Ne3 {[%clk 0:00:53]}  Nh7 {[%clk 0:02:14]} 20. Bf4 {[%clk 0:00:50]}  Qd8 {[%clk 0:01:53]} 21. Nc4 {[%clk 0:00:30]}  Nxc4 {[%clk 0:01:48]} 22. Bxc4 {[%clk 0:00:30]}  Qf6 {[%clk 0:01:45]} 23. Rab1 {[%clk 0:00:14]}  Bd7 {[%clk 0:01:43]} 24. Ne2 {[%clk 0:00:07]}  Bxa4 {[%clk 0:01:37]} 25. b3 {[%clk 0:00:08]}  Bb5 {[%clk 0:01:37]} 26. Be3 {[%clk 0:00:08]}  Bxc4 {[%clk 0:01:35]} 27. bxc4 {[%clk 0:00:09]}  a5 {[%clk 0:01:34]} 28. f4 {[%clk 0:00:10]}  Rxe4 {[%clk 0:01:23]} 29. Ng3 {[%clk 0:00:10]}  Rxe3 {[%clk 0:01:19]} 30. Qxe3 {[%clk 0:00:10]}  Qd4 {[%clk 0:01:20]} 31. Qxd4 {[%clk 0:00:10]}  Bxd4+ {[%clk 0:01:21]} 32. Kh1 {[%clk 0:00:10]}  a4 {[%clk 0:01:21]} 33. Ne2 {[%clk 0:00:11]}  Bg7 {[%clk 0:01:20]} 34. f5 {[%clk 0:00:11]}  a3 {[%clk 0:01:16]} 35. f6 {[%clk 0:00:10]}  Bxf6 {[%clk 0:01:14]} 0-1


[Site "https://www.chess.com"]

[Event "Titled Tuesday Blitz April 4 Late 2023"]
[White "koncheto"]
[Black "Gutkin, Ilya"]
[BlackFideId "16203470"]
[WhiteElo "2530"]
[BlackElo "2265"]
[Result "1-0"]
[Round "05"]
[TimeControl "180+2"]
[Date "2023.04.04"]
[WhiteClock "0:00:07"]
[BlackClock "0:00:03"]

1. e4 {[%clk 0:03:00]}  e6 {[%clk 0:02:59]} 2. d4 {[%clk 0:02:56]}  d5 {[%clk 0:02:59]} 3. Nd2 {[%clk 0:02:55]}  c5 {[%clk 0:02:59]} 4. Ngf3 {[%clk 0:02:50]}  cxd4 {[%clk 0:02:58]} 5. Nxd4 {[%clk 0:02:49]}  Nc6 {[%clk 0:02:58]} 6. Nxc6 {[%clk 0:02:47]}  bxc6 {[%clk 0:02:59]} 7. Bd3 {[%clk 0:02:47]}  Bd6 {[%clk 0:02:51]} 8. O-O {[%clk 0:02:45]}  Ne7 {[%clk 0:02:51]} 9. f4 {[%clk 0:02:40]}  f5 {[%clk 0:02:49]} 10. exf5 {[%clk 0:02:35]}  exf5 {[%clk 0:02:49]} 11. Nf3 {[%clk 0:02:34]}  Qb6+ {[%clk 0:02:46]} 12. Kh1 {[%clk 0:02:33]}  O-O {[%clk 0:02:45]} 13. c4 {[%clk 0:02:30]}  Ng6 {[%clk 0:02:34]} 14. cxd5 {[%clk 0:02:23]}  cxd5 {[%clk 0:02:35]} 15. g3 {[%clk 0:02:24]}  d4 {[%clk 0:02:21]} 16. Bc4+ {[%clk 0:02:22]}  Kh8 {[%clk 0:02:21]} 17. Bd5 {[%clk 0:02:15]}  Rb8 {[%clk 0:02:13]} 18. Qxd4 {[%clk 0:02:12]}  Bc5 {[%clk 0:02:13]} 19. Qa4 {[%clk 0:01:48]}  Rd8 {[%clk 0:02:10]} 20. Qc6 {[%clk 0:01:22]}  Rxd5 {[%clk 0:01:12]} 21. Qxd5 {[%clk 0:01:21]}  Bb7 {[%clk 0:01:13]} 22. Qxf5 {[%clk 0:01:21]}  Rf8 {[%clk 0:00:50]} 23. Qh5 {[%clk 0:01:19]}  Bf2 {[%clk 0:00:40]} 24. Bd2 {[%clk 0:01:15]}  Ne5 {[%clk 0:00:34]} 25. Kg2 {[%clk 0:00:46]}  Bxf3+ {[%clk 0:00:32]} 26. Qxf3 {[%clk 0:00:46]}  Nxf3 {[%clk 0:00:33]} 27. Kxf3 {[%clk 0:00:47]}  Bd4 {[%clk 0:00:31]} 28. Rae1 {[%clk 0:00:42]}  Qc6+ {[%clk 0:00:30]} 29. Kg4 {[%clk 0:00:41]}  Qc2 {[%clk 0:00:20]} 30. Bb4 {[%clk 0:00:40]}  Rb8 {[%clk 0:00:12]} 31. Bd6 {[%clk 0:00:40]}  Rd8 {[%clk 0:00:09]} 32. Kh3 {[%clk 0:00:35]}  Qxb2 {[%clk 0:00:08]} 33. Re4 {[%clk 0:00:30]}  Bf6 {[%clk 0:00:08]} 34. Rfe1 {[%clk 0:00:30]}  h6 {[%clk 0:00:08]} 35. Be5 {[%clk 0:00:26]}  Bxe5 {[%clk 0:00:08]} 36. Rxe5 {[%clk 0:00:27]}  Qxa2 {[%clk 0:00:08]} 37. Re7 {[%clk 0:00:27]}  a5 {[%clk 0:00:06]} 38. Ra7 {[%clk 0:00:27]}  a4 {[%clk 0:00:05]} 39. Ree7 {[%clk 0:00:27]}  Rg8 {[%clk 0:00:05]} 40. f5 {[%clk 0:00:27]}  Qf2 {[%clk 0:00:02]} 41. Rf7 {[%clk 0:00:15]}  h5 {[%clk 0:00:03]} 42. Rxa4 {[%clk 0:00:15]}  Qf1+ {[%clk 0:00:03]} 43. Kh4 {[%clk 0:00:15]}  Qf3 {[%clk 0:00:02]} 44. Kg5 {[%clk 0:00:14]}  Qe3+ {[%clk 0:00:01]} 45. Kxh5 {[%clk 0:00:14]}  Qe8 {[%clk 0:00:01]} 46. Kg6 {[%clk 0:00:13]}  Rf8 {[%clk 0:00:02]} 47. Ra7 {[%clk 0:00:10]}  Kg8 {[%clk 0:00:03]} 48. Re7 {[%clk 0:00:07]}  Rxf7 {[%clk 0:00:03]} 49. Rxe8+ {[%clk 0:00:07]}  Rf8 {[%clk 0:00:04]} 50. Rxf8+ {[%clk 0:00:08]}  Kxf8 {[%clk 0:00:04]} 51. g4 {[%clk 0:00:08]}  Kg8 {[%clk 0:00:04]} 52. g5 {[%clk 0:00:09]}  Kh8 {[%clk 0:00:04]} 53. h4 {[%clk 0:00:10]}  Kg8 {[%clk 0:00:05]} 54. h5 {[%clk 0:00:11]}  Kh8 {[%clk 0:00:06]} 55. h6 {[%clk 0:00:11]}  Kg8 {[%clk 0:00:06]} 56. f6 {[%clk 0:00:06]}  gxh6 {[%clk 0:00:03]} 57. gxh6 {[%clk 0:00:06]}  Kh8 {[%clk 0:00:04]} 58. Kf7 {[%clk 0:00:06]}  Kh7 {[%clk 0:00:03]} 59. Ke8 {[%clk 0:00:07]} 1-0


[Site "https://www.chess.com"]

[Event "Titled Tuesday Blitz April 4 Late 2023"]
[White "Tsyhanchuk, Stanislav"]
[Black "Shapiro, Viktor"]
[WhiteFideId "13505130"]
[BlackFideId "4175700"]
[WhiteElo "2173"]
[BlackElo "2152"]
[Result "1-0"]
[Round "05"]
[TimeControl "180+2"]
[Date "2023.04.04"]
[WhiteClock "0:00:10"]
[BlackClock "0:00:05"]

1. c4 {[%clk 0:03:00]}  c5 {[%clk 0:02:58]} 2. Nc3 {[%clk 0:03:00]}  Nc6 {[%clk 0:02:58]} 3. g3 {[%clk 0:03:00]}  Nf6 {[%clk 0:02:58]} 4. Bg2 {[%clk 0:03:00]}  d6 {[%clk 0:02:59]} 5. e3 {[%clk 0:02:59]}  e6 {[%clk 0:02:59]} 6. Nge2 {[%clk 0:02:59]}  Bd7 {[%clk 0:03:00]} 7. d4 {[%clk 0:02:59]}  Be7 {[%clk 0:03:00]} 8. O-O {[%clk 0:02:59]}  O-O {[%clk 0:03:00]} 9. a3 {[%clk 0:02:56]}  a6 {[%clk 0:03:00]} 10. Rb1 {[%clk 0:02:55]}  Rb8 {[%clk 0:03:00]} 11. b4 {[%clk 0:02:53]}  b5 {[%clk 0:02:50]} 12. cxb5 {[%clk 0:02:48]}  axb5 {[%clk 0:02:50]} 13. bxc5 {[%clk 0:02:48]}  dxc5 {[%clk 0:02:51]} 14. dxc5 {[%clk 0:02:33]}  Bxc5 {[%clk 0:02:50]} 15. Nxb5 {[%clk 0:02:30]}  Qe7 {[%clk 0:02:48]} 16. a4 {[%clk 0:02:26]}  Rfd8 {[%clk 0:02:40]} 17. Qc2 {[%clk 0:02:26]}  Nb4 {[%clk 0:02:38]} 18. Qc4 {[%clk 0:02:17]}  e5 {[%clk 0:02:21]} 19. Ba3 {[%clk 0:02:12]}  Be6 {[%clk 0:02:21]} 20. Qc3 {[%clk 0:01:58]}  Rd3 {[%clk 0:02:05]} 21. Qc1 {[%clk 0:01:34]}  Rc8 {[%clk 0:01:55]} 22. Bxb4 {[%clk 0:01:28]}  Bxb4 {[%clk 0:01:55]} 23. Qb2 {[%clk 0:01:27]}  Bb3 {[%clk 0:01:32]} 24. Nc1 {[%clk 0:01:16]}  Rc2 {[%clk 0:01:31]} 25. Qa1 {[%clk 0:00:59]}  Rdd2 {[%clk 0:01:04]} 26. Rxb3 {[%clk 0:00:52]}  Bc5 {[%clk 0:00:51]} 27. Nd3 {[%clk 0:00:38]}  Bxe3 {[%clk 0:00:48]} 28. Rc3 {[%clk 0:00:20]}  h5 {[%clk 0:00:27]} 29. Rxc2 {[%clk 0:00:18]}  Rxc2 {[%clk 0:00:27]} 30. fxe3 {[%clk 0:00:18]}  e4 {[%clk 0:00:27]} 31. Nf4 {[%clk 0:00:17]}  Qc5 {[%clk 0:00:26]} 32. Qe1 {[%clk 0:00:16]}  Ng4 {[%clk 0:00:23]} 33. Bxe4 {[%clk 0:00:13]}  Rxh2 {[%clk 0:00:19]} 34. Bf3 {[%clk 0:00:12]}  Ra2 {[%clk 0:00:12]} 35. Bxg4 {[%clk 0:00:12]}  hxg4 {[%clk 0:00:13]} 36. Qc1 {[%clk 0:00:12]}  Qb4 {[%clk 0:00:08]} 37. Qc8+ {[%clk 0:00:12]}  Kh7 {[%clk 0:00:08]} 38. Qf5+ {[%clk 0:00:12]}  Kg8 {[%clk 0:00:09]} 39. Qxg4 {[%clk 0:00:11]}  Qxa4 {[%clk 0:00:05]} 40. Nd4 {[%clk 0:00:10]}  Qa8 {[%clk 0:00:04]} 41. Nf3 {[%clk 0:00:09]}  f6 {[%clk 0:00:03]} 42. Nh5 {[%clk 0:00:09]}  Qb7 {[%clk 0:00:02]} 43. Qc4+ {[%clk 0:00:09]}  Qf7 {[%clk 0:00:01]} 44. Qxf7+ {[%clk 0:00:09]}  Kxf7 {[%clk 0:00:02]} 45. Nf4 {[%clk 0:00:10]}  Ra4 {[%clk 0:00:02]} 46. Rf2 {[%clk 0:00:09]}  Re4 {[%clk 0:00:03]} 47. Ng2 {[%clk 0:00:09]}  Ke7 {[%clk 0:00:03]} 48. Kf1 {[%clk 0:00:10]}  g5 {[%clk 0:00:04]} 49. Ke2 {[%clk 0:00:10]}  Ra4 {[%clk 0:00:04]} 50. Nd4 {[%clk 0:00:10]}  Ra2+ {[%clk 0:00:05]} 51. Kf3 {[%clk 0:00:10]}  Ra4 {[%clk 0:00:05]} 52. Nf5+ {[%clk 0:00:10]}  Ke6 {[%clk 0:00:05]} 53. g4 {[%clk 0:00:10]}  Rb4 {[%clk 0:00:05]} 54. Ne1 {[%clk 0:00:10]}  Rb1 {[%clk 0:00:05]} 55. Nd3 {[%clk 0:00:10]}  Rb3 {[%clk 0:00:05]} 56. Ke2 {[%clk 0:00:10]}  Rb5 {[%clk 0:00:05]} 57. Nd4+ {[%clk 0:00:10]} 1-0


[Site "https://www.chess.com"]

[Event "Titled Tuesday Blitz April 4 Late 2023"]
[White "Kalajzic, Ivan"]
[Black "LuckyMajky"]
[WhiteFideId "14506378"]
[WhiteElo "2203"]
[BlackElo "2456"]
[Result "1/2-1/2"]
[Round "05"]
[TimeControl "180+2"]
[Date "2023.04.04"]
[WhiteClock "0:00:26"]
[BlackClock "0:00:13"]

1. b3 {[%clk 0:02:50]}  Nf6 {[%clk 0:02:59]} 2. Bb2 {[%clk 0:02:48]}  d6 {[%clk 0:02:56]} 3. Bxf6 {[%clk 0:02:47]}  exf6 {[%clk 0:02:57]} 4. c4 {[%clk 0:02:47]}  f5 {[%clk 0:02:57]} 5. Nc3 {[%clk 0:02:47]}  g6 {[%clk 0:02:58]} 6. g3 {[%clk 0:02:47]}  Bg7 {[%clk 0:02:59]} 7. Bg2 {[%clk 0:02:47]}  O-O {[%clk 0:02:59]} 8. e3 {[%clk 0:02:48]}  c6 {[%clk 0:03:00]} 9. Nge2 {[%clk 0:02:48]}  a5 {[%clk 0:03:00]} 10. O-O {[%clk 0:02:46]}  Na6 {[%clk 0:03:00]} 11. a3 {[%clk 0:02:46]}  Re8 {[%clk 0:02:56]} 12. Rb1 {[%clk 0:02:46]}  Nc7 {[%clk 0:02:52]} 13. b4 {[%clk 0:02:45]}  axb4 {[%clk 0:02:53]} 14. axb4 {[%clk 0:02:46]}  Be6 {[%clk 0:02:54]} 15. d3 {[%clk 0:02:43]}  Ra3 {[%clk 0:02:46]} 16. Rb3 {[%clk 0:02:41]}  Qa8 {[%clk 0:02:43]} 17. Qc2 {[%clk 0:02:31]}  d5 {[%clk 0:02:24]} 18. cxd5 {[%clk 0:02:27]}  Nxd5 {[%clk 0:02:10]} 19. Nxd5 {[%clk 0:02:26]}  Ra2 {[%clk 0:02:07]} 20. Qd1 {[%clk 0:02:02]}  Bxd5 {[%clk 0:02:05]} 21. Bxd5 {[%clk 0:02:01]}  cxd5 {[%clk 0:02:05]} 22. d4 {[%clk 0:02:00]}  Rc8 {[%clk 0:01:56]} 23. Nf4 {[%clk 0:01:53]}  b6 {[%clk 0:01:50]} 24. Qf3 {[%clk 0:01:52]}  Rd8 {[%clk 0:01:40]} 25. Rc1 {[%clk 0:01:48]}  Ra3 {[%clk 0:01:28]} 26. Rbb1 {[%clk 0:01:27]}  Bxd4 {[%clk 0:01:20]} 27. Rd1 {[%clk 0:01:20]}  Be5 {[%clk 0:01:07]} 28. Rxd5 {[%clk 0:01:17]}  Rxd5 {[%clk 0:00:19]} 29. Qxd5 {[%clk 0:01:07]}  Bxf4 {[%clk 0:00:18]} 30. Qxa8+ {[%clk 0:01:03]}  Rxa8 {[%clk 0:00:19]} 31. gxf4 {[%clk 0:01:03]}  Ra2 {[%clk 0:00:17]} 32. Kg2 {[%clk 0:00:58]}  Kg7 {[%clk 0:00:17]} 33. Kf3 {[%clk 0:00:57]}  b5 {[%clk 0:00:17]} 34. Rd1 {[%clk 0:00:55]}  Rb2 {[%clk 0:00:17]} 35. Rd4 {[%clk 0:00:55]}  Kh6 {[%clk 0:00:17]} 36. h3 {[%clk 0:00:47]}  Kh5 {[%clk 0:00:15]} 37. Kg3 {[%clk 0:00:46]}  h6 {[%clk 0:00:15]} 38. Rd7 {[%clk 0:00:38]}  Rxb4 {[%clk 0:00:14]} 39. Rxf7 {[%clk 0:00:39]}  Rb1 {[%clk 0:00:14]} 40. Rb7 {[%clk 0:00:32]}  b4 {[%clk 0:00:15]} 41. f3 {[%clk 0:00:32]}  b3 {[%clk 0:00:15]} 42. e4 {[%clk 0:00:32]}  fxe4 {[%clk 0:00:15]} 43. fxe4 {[%clk 0:00:32]}  b2 {[%clk 0:00:15]} 44. Kg2 {[%clk 0:00:33]}  Kh4 {[%clk 0:00:14]} 45. e5 {[%clk 0:00:31]}  g5 {[%clk 0:00:13]} 46. fxg5 {[%clk 0:00:29]}  hxg5 {[%clk 0:00:12]} 47. e6 {[%clk 0:00:29]}  Kh5 {[%clk 0:00:11]} 48. e7 {[%clk 0:00:28]}  Re1 {[%clk 0:00:11]} 49. Rxb2 {[%clk 0:00:26]}  Rxe7 {[%clk 0:00:12]} 50. Rb6 {[%clk 0:00:26]}  Re2+ {[%clk 0:00:12]} 51. Kg3 {[%clk 0:00:26]}  Ra2 {[%clk 0:00:12]} 52. Rb4 {[%clk 0:00:26]}  Ra3+ {[%clk 0:00:12]} 53. Kg2 {[%clk 0:00:26]}  Rc3 {[%clk 0:00:13]} 1/2-1/2


[Site "https://www.chess.com"]

[Event "Titled Tuesday Blitz April 4 Late 2023"]
[White "lluiss"]
[Black "Moore, Nicholas"]
[BlackFideId "4303709"]
[WhiteElo "2257"]
[BlackElo "2447"]
[Result "1-0"]
[Round "05"]
[TimeControl "180+2"]
[Date "2023.04.04"]
[WhiteClock "0:00:08"]
[BlackClock "0:00:02"]

1. c4 {[%clk 0:03:00]}  c6 {[%clk 0:02:59]} 2. d4 {[%clk 0:03:00]}  d5 {[%clk 0:02:59]} 3. cxd5 {[%clk 0:03:00]}  cxd5 {[%clk 0:02:59]} 4. Nc3 {[%clk 0:03:00]}  Nf6 {[%clk 0:02:57]} 5. Nf3 {[%clk 0:03:00]}  Nc6 {[%clk 0:02:57]} 6. Bf4 {[%clk 0:03:00]}  a6 {[%clk 0:02:57]} 7. e3 {[%clk 0:02:59]}  Bf5 {[%clk 0:02:50]} 8. Bd3 {[%clk 0:02:59]}  Bxd3 {[%clk 0:02:49]} 9. Qxd3 {[%clk 0:03:00]}  e6 {[%clk 0:02:49]} 10. O-O {[%clk 0:02:59]}  Be7 {[%clk 0:02:49]} 11. Rfc1 {[%clk 0:02:55]}  O-O {[%clk 0:02:49]} 12. Bg5 {[%clk 0:02:52]}  h6 {[%clk 0:02:33]} 13. Bxf6 {[%clk 0:02:52]}  Bxf6 {[%clk 0:02:34]} 14. Na4 {[%clk 0:02:52]}  Rc8 {[%clk 0:02:26]} 15. Rc3 {[%clk 0:02:15]}  e5 {[%clk 0:02:12]} 16. dxe5 {[%clk 0:02:08]}  Nxe5 {[%clk 0:02:11]} 17. Nxe5 {[%clk 0:02:07]}  Bxe5 {[%clk 0:02:08]} 18. Rxc8 {[%clk 0:01:59]}  Qxc8 {[%clk 0:01:50]} 19. Qxd5 {[%clk 0:01:50]}  Qc7 {[%clk 0:01:48]} 20. g3 {[%clk 0:01:39]}  Rd8 {[%clk 0:01:47]} 21. Qc5 {[%clk 0:01:39]}  Rd2 {[%clk 0:00:50]} 22. Qxc7 {[%clk 0:00:58]}  Bxc7 {[%clk 0:00:50]} 23. Rc1 {[%clk 0:00:58]}  Bd6 {[%clk 0:00:46]} 24. Rc8+ {[%clk 0:00:29]}  Kh7 {[%clk 0:00:46]} 25. Rd8 {[%clk 0:00:28]}  Kg6 {[%clk 0:00:29]} 26. Nc5 {[%clk 0:00:28]}  f5 {[%clk 0:00:20]} 27. Nxb7 {[%clk 0:00:26]}  Bb4 {[%clk 0:00:21]} 28. Rxd2 {[%clk 0:00:26]}  Bxd2 {[%clk 0:00:22]} 29. Nc5 {[%clk 0:00:25]}  a5 {[%clk 0:00:21]} 30. b3 {[%clk 0:00:25]}  Kf6 {[%clk 0:00:20]} 31. Nd3 {[%clk 0:00:24]}  Ke6 {[%clk 0:00:19]} 32. Kf1 {[%clk 0:00:25]}  Kd5 {[%clk 0:00:19]} 33. Ke2 {[%clk 0:00:25]}  Bc3 {[%clk 0:00:19]} 34. Nf4+ {[%clk 0:00:24]}  Kd6 {[%clk 0:00:19]} 35. Kd3 {[%clk 0:00:23]}  Be1 {[%clk 0:00:18]} 36. f3 {[%clk 0:00:22]}  g5 {[%clk 0:00:18]} 37. Ne2 {[%clk 0:00:20]}  g4 {[%clk 0:00:17]} 38. fxg4 {[%clk 0:00:18]}  fxg4 {[%clk 0:00:18]} 39. Nd4 {[%clk 0:00:17]}  Ke5 {[%clk 0:00:17]} 40. Nc6+ {[%clk 0:00:17]}  Kd5 {[%clk 0:00:16]} 41. Ne7+ {[%clk 0:00:16]}  Ke6 {[%clk 0:00:16]} 42. Ng6 {[%clk 0:00:16]}  Bf2 {[%clk 0:00:15]} 43. Nf4+ {[%clk 0:00:16]}  Kf5 {[%clk 0:00:15]} 44. e4+ {[%clk 0:00:15]}  Kg5 {[%clk 0:00:11]} 45. e5 {[%clk 0:00:10]}  Bg1 {[%clk 0:00:11]} 46. Ke4 {[%clk 0:00:09]}  Bxh2 {[%clk 0:00:11]} 47. Ne2 {[%clk 0:00:09]}  h5 {[%clk 0:00:09]} 48. Kd5 {[%clk 0:00:09]}  h4 {[%clk 0:00:05]} 49. gxh4+ {[%clk 0:00:10]}  Kxh4 {[%clk 0:00:06]} 50. e6 {[%clk 0:00:10]}  Kh3 {[%clk 0:00:01]} 51. e7 {[%clk 0:00:09]}  Kg2 {[%clk 0:00:01]} 52. e8=Q {[%clk 0:00:08]}  g3 {[%clk 0:00:02]} 53. Qe4+ {[%clk 0:00:07]}  Kf1 {[%clk 0:00:02]} 54. Nxg3+ {[%clk 0:00:07]}  Bxg3 {[%clk 0:00:03]} 55. Qf3+ {[%clk 0:00:07]}  Bf2 {[%clk 0:00:02]} 56. Kc4 {[%clk 0:00:07]}  Kg1 {[%clk 0:00:02]} 57. Kb5 {[%clk 0:00:07]}  a4 {[%clk 0:00:02]} 58. Kxa4 {[%clk 0:00:07]}  Kh2 {[%clk 0:00:02]} 59. b4 {[%clk 0:00:08]}  Kg1 {[%clk 0:00:02]} 60. b5 {[%clk 0:00:08]} 1-0


[Site "https://www.chess.com"]

[Event "Titled Tuesday Blitz April 4 Late 2023"]
[White "ArchibaldCerveza29"]
[Black "Osmonbekov, Talaibek"]
[BlackFideId "2017253"]
[WhiteElo "2426"]
[BlackElo "2135"]
[Result "0-1"]
[Round "05"]
[TimeControl "180+2"]
[Date "2023.04.04"]
[WhiteClock "0:00:09"]
[BlackClock "0:00:16"]

1. e4 {[%clk 0:03:00]}  c5 {[%clk 0:03:00]} 2. Nf3 {[%clk 0:03:01]}  d6 {[%clk 0:03:00]} 3. d4 {[%clk 0:03:01]}  cxd4 {[%clk 0:03:01]} 4. Nxd4 {[%clk 0:03:02]}  Nf6 {[%clk 0:03:02]} 5. Nc3 {[%clk 0:03:02]}  g6 {[%clk 0:03:02]} 6. f3 {[%clk 0:03:02]}  Bg7 {[%clk 0:03:03]} 7. Be3 {[%clk 0:03:03]}  O-O {[%clk 0:03:03]} 8. Qd2 {[%clk 0:03:03]}  Nc6 {[%clk 0:03:04]} 9. Bc4 {[%clk 0:03:04]}  Bd7 {[%clk 0:03:03]} 10. Bb3 {[%clk 0:03:02]}  Rc8 {[%clk 0:03:03]} 11. O-O-O {[%clk 0:03:02]}  Nxd4 {[%clk 0:03:02]} 12. Bxd4 {[%clk 0:03:03]}  b5 {[%clk 0:03:03]} 13. Kb1 {[%clk 0:03:02]}  a5 {[%clk 0:03:02]} 14. a4 {[%clk 0:02:59]}  bxa4 {[%clk 0:02:59]} 15. Nxa4 {[%clk 0:02:49]}  Bxa4 {[%clk 0:02:56]} 16. Bxa4 {[%clk 0:02:48]}  Rc4 {[%clk 0:02:56]} 17. Bb3 {[%clk 0:01:46]}  Nxe4 {[%clk 0:02:54]} 18. Qe3 {[%clk 0:01:39]}  Rxd4 {[%clk 0:02:34]} 19. Rxd4 {[%clk 0:01:33]}  Bxd4 {[%clk 0:02:33]} 20. Qxd4 {[%clk 0:00:56]}  Nc5 {[%clk 0:02:30]} 21. Bd5 {[%clk 0:00:56]}  Qb6 {[%clk 0:02:11]} 22. Re1 {[%clk 0:00:51]}  e6 {[%clk 0:02:08]} 23. Bb3 {[%clk 0:00:47]}  Rb8 {[%clk 0:02:02]} 24. Ka2 {[%clk 0:00:13]}  a4 {[%clk 0:01:38]} 25. Bc4 {[%clk 0:00:11]}  Qb4 {[%clk 0:01:30]} 26. Rd1 {[%clk 0:00:11]}  d5 {[%clk 0:00:55]} 27. Bf1 {[%clk 0:00:11]}  Qa5 {[%clk 0:00:48]} 28. h4 {[%clk 0:00:11]}  a3 {[%clk 0:00:45]} 29. b3 {[%clk 0:00:11]}  Rb4 {[%clk 0:00:40]} 30. Qc3 {[%clk 0:00:11]}  Qb6 {[%clk 0:00:34]} 31. Rb1 {[%clk 0:00:09]}  e5 {[%clk 0:00:30]} 32. Qxe5 {[%clk 0:00:09]}  d4 {[%clk 0:00:22]} 33. Qe8+ {[%clk 0:00:09]}  Kg7 {[%clk 0:00:21]} 34. Qe5+ {[%clk 0:00:09]}  f6 {[%clk 0:00:20]} 35. Qe7+ {[%clk 0:00:09]}  Kh6 {[%clk 0:00:20]} 36. Qxf6 {[%clk 0:00:10]}  Qxf6 {[%clk 0:00:19]} 37. Bc4 {[%clk 0:00:09]}  d3 {[%clk 0:00:19]} 38. cxd3 {[%clk 0:00:09]}  Qc3 {[%clk 0:00:18]} 39. d4 {[%clk 0:00:08]}  Qxd4 {[%clk 0:00:17]} 40. h5 {[%clk 0:00:08]}  Rxc4 {[%clk 0:00:16]} 41. bxc4 {[%clk 0:00:08]}  Qxc4+ {[%clk 0:00:16]} 42. Kxa3 {[%clk 0:00:09]}  Qa4+ {[%clk 0:00:16]} 43. Kb2 {[%clk 0:00:10]}  Qc4 {[%clk 0:00:16]} 44. Rc1 {[%clk 0:00:10]}  Qb3+ {[%clk 0:00:15]} 45. Ka1 {[%clk 0:00:10]}  Nd3 {[%clk 0:00:16]} 46. Rb1 {[%clk 0:00:09]}  Qa3# {[%clk 0:00:16]} 0-1


[Site "https://www.chess.com"]

[Event "Titled Tuesday Blitz April 4 Late 2023"]
[White "Pein, Jonathan"]
[Black "Chabris, Christopher"]
[WhiteFideId "417092"]
[BlackFideId "2005263"]
[WhiteElo "2151"]
[BlackElo "2226"]
[Result "1-0"]
[Round "05"]
[TimeControl "180+2"]
[Date "2023.04.04"]
[WhiteClock "0:00:05"]
[BlackClock "0:00:03"]

1. Nf3 {[%clk 0:03:00]}  Nf6 {[%clk 0:02:57]} 2. b3 {[%clk 0:02:59]}  e6 {[%clk 0:02:49]} 3. Bb2 {[%clk 0:03:00]}  d5 {[%clk 0:02:48]} 4. e3 {[%clk 0:03:00]}  Bd6 {[%clk 0:02:46]} 5. d4 {[%clk 0:02:58]}  Nbd7 {[%clk 0:02:46]} 6. Bd3 {[%clk 0:02:58]}  b6 {[%clk 0:02:43]} 7. Qe2 {[%clk 0:02:56]}  a6 {[%clk 0:02:28]} 8. Nbd2 {[%clk 0:02:56]}  Bb7 {[%clk 0:02:28]} 9. e4 {[%clk 0:02:36]}  dxe4 {[%clk 0:02:15]} 10. Nxe4 {[%clk 0:02:37]}  Nxe4 {[%clk 0:02:07]} 11. Bxe4 {[%clk 0:02:38]}  Bxe4 {[%clk 0:02:06]} 12. Qxe4 {[%clk 0:02:39]}  O-O {[%clk 0:02:04]} 13. O-O {[%clk 0:02:27]}  Qf6 {[%clk 0:01:49]} 14. c4 {[%clk 0:02:23]}  Qg6 {[%clk 0:01:34]} 15. Qxg6 {[%clk 0:02:21]}  hxg6 {[%clk 0:01:34]} 16. Rad1 {[%clk 0:02:19]}  Rfd8 {[%clk 0:01:28]} 17. Ng5 {[%clk 0:02:12]}  Be7 {[%clk 0:01:15]} 18. Ne4 {[%clk 0:02:11]}  Nf6 {[%clk 0:01:07]} 19. f3 {[%clk 0:02:04]}  Rd7 {[%clk 0:00:54]} 20. Kf2 {[%clk 0:02:00]}  Rad8 {[%clk 0:00:50]} 21. Ke3 {[%clk 0:01:56]}  Ne8 {[%clk 0:00:42]} 22. g3 {[%clk 0:01:48]}  c5 {[%clk 0:00:38]} 23. Rd2 {[%clk 0:01:28]}  f5 {[%clk 0:00:37]} 24. Nf2 {[%clk 0:01:17]}  cxd4+ {[%clk 0:00:37]} 25. Kd3 {[%clk 0:01:07]}  e5 {[%clk 0:00:33]} 26. Re1 {[%clk 0:01:07]}  Bf6 {[%clk 0:00:32]} 27. Kc2 {[%clk 0:01:02]}  Nc7 {[%clk 0:00:31]} 28. Nd3 {[%clk 0:01:02]}  Re8 {[%clk 0:00:28]} 29. Rde2 {[%clk 0:01:01]}  Rde7 {[%clk 0:00:28]} 30. Ba3 {[%clk 0:01:01]}  Re6 {[%clk 0:00:27]} 31. Nf2 {[%clk 0:00:46]}  Kf7 {[%clk 0:00:27]} 32. Kd3 {[%clk 0:00:36]}  Rd8 {[%clk 0:00:20]} 33. h4 {[%clk 0:00:28]}  Ne8 {[%clk 0:00:20]} 34. Nh3 {[%clk 0:00:27]}  Nd6 {[%clk 0:00:19]} 35. Bxd6 {[%clk 0:00:24]}  Rexd6 {[%clk 0:00:18]} 36. Ng5+ {[%clk 0:00:22]}  Kf8 {[%clk 0:00:16]} 37. g4 {[%clk 0:00:17]}  Rc8 {[%clk 0:00:14]} 38. Rg1 {[%clk 0:00:12]}  b5 {[%clk 0:00:14]} 39. Rc1 {[%clk 0:00:10]}  Rdc6 {[%clk 0:00:13]} 40. gxf5 {[%clk 0:00:08]}  gxf5 {[%clk 0:00:13]} 41. Nh7+ {[%clk 0:00:04]}  Kf7 {[%clk 0:00:13]} 42. Nxf6 {[%clk 0:00:05]}  Kxf6 {[%clk 0:00:12]} 43. Rg2 {[%clk 0:00:05]}  bxc4+ {[%clk 0:00:11]} 44. Rxc4 {[%clk 0:00:05]}  Rxc4 {[%clk 0:00:11]} 45. bxc4 {[%clk 0:00:06]}  Rb8 {[%clk 0:00:10]} 46. h5 {[%clk 0:00:07]}  Rb4 {[%clk 0:00:09]} 47. Rg6+ {[%clk 0:00:07]}  Kf7 {[%clk 0:00:09]} 48. Rxa6 {[%clk 0:00:08]}  Rb2 {[%clk 0:00:09]} 49. h6 {[%clk 0:00:05]}  Rf2 {[%clk 0:00:09]} 50. Ra7+ {[%clk 0:00:04]}  Kg8 {[%clk 0:00:08]} 51. Rxg7+ {[%clk 0:00:04]}  Kh8 {[%clk 0:00:08]} 52. Re7 {[%clk 0:00:04]}  Rxf3+ {[%clk 0:00:08]} 53. Ke2 {[%clk 0:00:04]}  Re3+ {[%clk 0:00:08]} 54. Kd2 {[%clk 0:00:05]}  f4 {[%clk 0:00:08]} 55. c5 {[%clk 0:00:05]}  f3 {[%clk 0:00:08]} 56. Rf7 {[%clk 0:00:04]}  Re2+ {[%clk 0:00:07]} 57. Kd3 {[%clk 0:00:05]}  e4+ {[%clk 0:00:07]} 58. Kxd4 {[%clk 0:00:05]}  f2 {[%clk 0:00:06]} 59. c6 {[%clk 0:00:05]}  Rc2 {[%clk 0:00:05]} 60. c7 {[%clk 0:00:04]}  e3 {[%clk 0:00:05]} 61. Rf8+ {[%clk 0:00:04]}  Kh7 {[%clk 0:00:05]} 62. Kxe3 {[%clk 0:00:04]}  Rxc7 {[%clk 0:00:04]} 63. Rxf2 {[%clk 0:00:04]}  Kxh6 {[%clk 0:00:04]} 64. Rg2 {[%clk 0:00:04]}  Ra7 {[%clk 0:00:03]} 65. Kd3 {[%clk 0:00:04]}  Ra3+ {[%clk 0:00:03]} 66. Kc4 {[%clk 0:00:05]} 1-0


[Site "https://www.chess.com"]